bitfinex/quotes_SOLUSD_20250507
["timestamp","ask_amount","ask_price","bid_price","bid_amount"]
[1746603795650,137.7,146.95,146.94,6.80549884]
[1746603795972,14.28046516,146.97,146.94,6.80549884]
[1746603796753,14.28046516,146.97,146.93,6.80596202]
[1746603797750,14.28046516,146.96,146.92,6.80638241]
[1746603797954,14.28046516,146.96,146.92,21.08684757]
[1746603801069,144.50376105,146.98,146.92,21.08684757]
[1746603801254,14.28046516,146.96,146.92,21.08684757]
[1746603801748,151.98046516,146.97,146.92,21.08684757]
[1746603802167,151.98046516,146.97,146.93,14.28046516]
[1746603803163,151.98046516,146.97,146.92,14.28046516]
[1746603804771,151.98046516,146.97,146.94,6.80549884]
[1746603804958,137.7,146.97,146.94,21.085964]
[1746603806473,137.7,146.97,146.93,14.28046516]
[1746603806969,151.98046516,146.97,146.93,14.28046516]
[1746603807271,151.98046516,146.97,146.93,30.06046516]
[1746603808974,137.7,146.97,146.94,6.80549884]
[1746603809281,137.7,146.97,146.94,21.085964]
[1746603809579,137.7,146.97,146.95,14.28046516]
[1746603810778,137.7,146.97,146.94,23.81924594]
[1746603810779,137.7,146.97,146.94,38.0997111]
[1746603811780,137.7,146.97,146.94,23.81924594]
[1746603812184,137.7,146.97,146.94,6.80549884]
[1746603813063,151.98046516,146.97,146.94,6.80549884]
[1746603816480,137.7,146.97,146.94,6.80549884]
[1746603816680,151.98046516,146.97,146.94,6.80549884]
[1746603818073,14.28046516,146.96,146.93,6.80579752]
[1746603820800,137.7,146.97,146.94,14.28046516]
[1746603822190,137.7,146.97,146.93,21.08626268]
[1746603823390,137.7,146.97,146.94,14.28046516]
[1746603825489,137.7,146.97,146.95,6.80503572]
[1746603826013,137.7,146.97,146.95,21.08550088]
[1746603826194,137.7,146.97,146.96,14.28046516]
[1746603826692,137.7,146.97,146.95,21.08550088]
[1746603831282,137.7,146.97,146.95,6.80503572]
[1746603834377,137.7,146.97,146.95,15.94310055]
[1746603838109,139.2553,147.0,146.96,9.13806483]
[1746603838277,139.2553,147.0,146.95,23.81762503]
[1746603838278,137.7,147.0,146.98,9.13806483]
[1746603838477,30.919664,147.04,146.99,9.13806483]
[1746603838478,137.7,147.03,146.99,9.13806483]
[1746603838807,137.7,147.03,147.0,9.13806483]
[1746603839501,146.83806483,147.03,146.98,26.0]
[1746603839675,9.13806483,147.01,146.95,23.81762503]
[1746603839880,9.13806483,147.01,146.96,24.91806483]
[1746603840281,9.13806483,147.01,146.97,6.80410968]
[1746603840497,9.13806483,147.0,146.97,6.80410968]
[1746603840693,9.13806483,146.99,146.96,22.58450103]
[1746603840894,9.13806483,146.99,146.95,6.80483654]
[1746603841301,9.13806483,146.99,146.95,15.94290137]
[1746603842399,9.13806483,146.99,146.95,6.80483654]
[1746603845102,9.13806483,146.99,146.95,15.94290137]
[1746603845605,9.13806483,146.98,146.94,31.72335777]
[1746603845822,9.13806483,146.98,146.94,22.58529294]
[1746603846191,137.7,146.99,146.94,31.72335777]
[1746603846393,146.83806483,146.99,146.94,31.72335777]
[1746603846812,137.7,146.99,146.94,31.72335777]
[1746603847104,146.83806483,146.99,146.95,9.13806483]
[1746603847306,146.83806483,146.99,146.96,6.80457267]
[1746603847808,137.7,146.99,146.96,6.80457267]
[1746603848007,146.83806483,146.99,146.96,6.80457267]
[1746603852220,146.83806483,146.99,146.95,6.804935]
[1746603852423,146.83806483,146.99,146.95,15.94299983]
[1746603852594,146.83806483,146.99,146.95,6.804935]
[1746603853711,9.13806483,146.98,146.94,31.7233873]
[1746603854421,137.7,146.99,146.95,9.13806483]
[1746603854628,146.83806483,146.99,146.95,9.13806483]
[1746603855519,146.83806483,146.99,146.95,15.94278883]
[1746603855818,137.7,146.98,146.95,15.94278883]
[1746603861526,5.09600221,146.96,146.95,15.94278883]
[1746603876839,5.09600221,146.96,146.95,6.804724]
[1746603877040,5.09600221,146.96,146.95,15.94278883]
[1746603882924,5.09600221,146.96,146.95,41.94278883]
[1746603883747,137.7,147.02,146.95,58.95537814]
[1746603883936,137.7,147.02,146.98,9.13806483]
[1746603884140,137.7,147.02,146.99,9.13806483]
[1746603884948,5.09870883,147.01,147.0,6.80272108]
[1746603887143,5.09870883,147.01,146.99,6.80318389]
[1746603887331,14.23677366,147.01,146.99,6.80318389]
[1746603887533,5.09870883,147.0,146.98,6.80353839]
[1746603887743,14.23677366,147.0,146.96,31.7026375]
[1746603888233,5.09870883,146.99,146.96,31.7026375]
[1746603888852,5.09870883,146.98,146.96,22.56457267]
[1746603889034,5.09870883,146.98,146.96,31.7026375]
[1746603889954,5.09870883,146.98,146.97,9.13806483]
[1746603890948,5.09870883,146.98,146.97,15.94217451]
[1746603891124,5.09870883,146.98,146.97,6.80410968]
[1746603891458,5.09870883,146.98,146.97,15.94217451]
[1746603895650,137.7,147.02,146.97,32.95244871]
[1746603895948,137.7,147.02,146.99,9.13806483]
[1746603897645,137.7,147.02,147.0,6.80272108]
[1746603898849,5.0924175,147.01,147.0,6.80272108]
[1746603899047,5.0924175,147.01,147.0,15.94078591]
[1746603899549,5.0924175,147.01,146.99,9.13806483]
[1746603900050,5.0924175,147.0,146.99,9.13806483]
[1746603901452,5.0924175,147.0,146.99,15.94124872]
[1746603902329,5.0924175,147.0,146.99,6.80318389]
[1746603903854,5.0924175,147.0,146.99,15.94124872]
[1746603904058,5.0924175,147.0,146.99,6.80318389]
[1746603906336,5.0924175,147.0,146.97,23.81438388]
[1746603906535,5.0924175,147.0,146.97,32.95244871]
[1746603906961,5.0924175,147.0,146.98,9.13806483]
[1746603907261,5.0924175,146.99,146.98,9.13806483]
[1746603908248,5.0924175,146.99,146.98,15.94171158]
[1746603909047,10.64586483,147.03,146.98,15.94171158]
[1746603909249,10.64586483,147.03,146.99,9.13806483]
[1746603909862,5.08877668,147.02,146.99,9.13806483]
[1746603911053,1.5078,147.03,146.99,9.13806483]
[1746603911054,5.08877668,147.01,146.99,9.13806483]
[1746603911657,5.08877668,147.01,147.0,6.80272108]
[1746603916774,5.08877668,147.01,147.0,15.94078591]
[1746603922075,5.08877668,147.01,147.0,52.49304523]
[1746603924268,6.531,147.14,147.11,15.93548712]
[1746603925262,6.531,147.14,147.11,9.13806483]
[1746603925565,6.531,147.14,147.11,15.9356384]
[1746603925778,6.531,147.14,147.09,6.7985587]
[1746603925950,1.569,147.15,147.12,9.13806483]
[1746603927264,131.7,147.16,147.12,15.93511716]
[1746603927472,131.7,147.16,147.12,31.69511716]
[1746603927855,131.7,147.16,147.12,22.55705233]
[1746603928277,145.94237814,147.16,147.12,36.79943047]
[1746603928579,14.24237814,147.15,147.12,15.76]
[1746603931588,14.24237814,147.15,147.12,22.55716758]
[1746603933287,145.94237814,147.16,147.12,36.79954572]
[1746603933585,131.7,147.16,147.12,36.79954572]
[1746603933764,145.94237814,147.16,147.12,36.79954572]
[1746603934181,131.7,147.16,147.12,36.79954572]
[1746603934488,145.94237814,147.16,147.12,36.79954572]
[1746603935590,131.7,147.16,147.13,14.24237814]
[1746603936966,2.595436,147.18,147.13,14.24237814]
[1746603937285,2.595436,147.18,147.14,14.24237814]
[1746603937480,15.20571414,147.18,147.14,21.03820119]
[1746603938088,14.24237814,147.17,147.14,6.79582305]
[1746603938287,14.24237814,147.15,147.09,42.99536203]
[1746603938474,14.24237814,147.15,147.12,15.8]
[1746603939484,14.24237814,147.13,147.12,15.8]
[1746603944788,14.24237814,147.13,147.12,22.59717237]
[1746603947489,14.24237814,147.13,147.12,15.8]
[1746603948490,14.24237814,147.13,147.12,22.59717237]
[1746603949489,14.24237814,147.14,147.12,22.59717237]
[1746603950787,14.24237814,147.14,147.12,15.8]
[1746603951187,14.24237814,147.13,147.12,15.8]
[1746603951497,14.24237814,147.13,147.09,6.7985587]
[1746603951792,14.24237814,147.1,147.08,22.59881358]
[1746603952089,14.24237814,147.1,147.08,6.79881358]
[1746603952278,14.24237814,147.11,147.08,6.79881358]
[1746603952681,14.24237814,147.11,147.07,6.79948323]
[1746603952874,14.24237814,147.11,147.07,22.59948323]
[1746603953069,14.24237814,147.11,147.07,6.79948323]
[1746603953278,152.73866243,147.14,147.07,22.59948323]
[1746603953590,14.24237814,147.11,147.07,6.79948323]
[1746603953792,14.24237814,147.11,147.07,22.59948323]
[1746603953993,14.24237814,147.11,147.07,36.84186137]
[1746603955585,14.24237814,147.12,147.08,14.24237814]
[1746603955788,145.94237814,147.13,147.09,14.24237814]
[1746603956298,145.94237814,147.13,147.1,6.79809653]
[1746603957188,131.7,147.13,147.1,21.04047467]
[1746603957796,131.7,147.13,147.1,6.79809653]
[1746603958799,145.94237814,147.13,147.1,6.79809653]
[1746603958987,14.24237814,147.12,147.1,6.79809653]
[1746603959904,14.24237814,147.11,147.09,6.79846733]
[1746603960201,14.24237814,147.1,147.09,6.79846733]
[1746603960780,14.24237814,147.1,147.08,6.79902094]
[1746603960982,14.24237814,147.11,147.08,6.79902094]
[1746603961195,14.24237814,147.1,147.08,6.79902094]
[1746603961394,14.24237814,147.09,147.06,26.0]
[1746603961580,14.24237814,147.08,147.06,26.0]
[1746603962205,1.5364,147.16,147.1,26.0]
[1746603962390,14.24237814,147.15,147.1,40.24237814]
[1746603962589,14.24237814,147.15,147.1,56.04237814]
[1746603962897,15.77877814,147.16,147.11,21.04001256]
[1746603963291,131.7,147.17,147.13,14.24237814]
[1746603963491,145.94237814,147.17,147.13,14.24237814]
[1746603964199,131.7,147.17,147.11,25.36322047]
[1746603964419,0.963336,147.18,147.15,14.24237814]
[1746603964586,0.963336,147.18,147.14,14.24237814]
[1746603965306,0.963336,147.18,147.15,6.79578661]
[1746603965491,15.20571414,147.18,147.15,6.79578661]
[1746603965696,14.24237814,147.17,147.15,6.79578661]
[1746603967710,14.24237814,147.17,147.14,6.79624847]
[1746603967893,15.20571414,147.18,147.14,6.79624847]
[1746603968395,14.24237814,147.16,147.14,6.79624847]
[1746603969805,14.24237814,147.17,147.13,21.03908853]
[1746603969999,14.24237814,147.16,147.13,6.79671039]
[1746603971806,14.24237814,147.17,147.13,14.24237814]
[1746603973006,14.24237814,147.17,147.14,6.79624847]
[1746603975010,14.24237814,147.16,147.12,23.78902112]
[1746603975210,14.24237814,147.16,147.12,38.03139926]
[1746603976314,0.963336,147.18,147.13,14.24237814]
[1746603976315,14.24237814,147.17,147.13,14.24237814]
[1746603977809,0.963336,147.18,147.14,6.79624847]
[1746603978001,14.24237814,147.17,147.14,6.79624847]
[1746603978706,0.963336,147.18,147.14,6.79624847]
[1746603978913,15.20571414,147.18,147.14,6.79624847]
[1746603979114,14.24237814,147.17,147.14,6.79624847]
[1746603979291,0.963336,147.18,147.14,6.79624847]
[1746603979493,15.20571414,147.18,147.14,6.79624847]
[1746603980314,15.20571414,147.18,147.14,23.78686964]
[1746603980616,14.24237814,147.17,147.14,23.78686964]
[1746603981026,14.24237814,147.16,147.14,6.79624847]
[1746603982090,14.24237814,147.16,147.13,6.79671039]
[1746603982600,14.24237814,147.17,147.13,6.79671039]
[1746603986010,15.20571414,147.18,147.13,6.79671039]
[1746603986215,15.20571414,147.18,147.13,79.87086451]
[1746603987224,0.963336,147.18,147.13,79.87086451]
[1746603987398,0.963336,147.18,147.14,14.24237814]
[1746603987806,0.963336,147.18,147.15,14.24237814]
[1746603989214,0.963336,147.18,147.15,6.79578661]
[1746603991225,0.963336,147.18,147.15,21.03816475]
[1746603993650,15.20571414,147.18,147.15,6.79578661]
[1746603994619,0.963336,147.18,147.15,6.79578661]
[1746603994825,0.963336,147.18,147.16,14.24237814]
[1746603996726,0.963336,147.18,147.17,6.79486308]
[1746603999423,0.963336,147.18,147.17,21.03724122]
[1746604001231,0.963336,147.18,147.17,14.24237814]
[1746604003131,0.963336,147.18,147.17,21.03724122]
[1746604007135,0.963336,147.18,147.17,39.68689008]
[1746604007343,14.24237814,147.29,147.24,14.24237814]
[1746604007642,14.24237814,147.28,147.24,14.24237814]
[1746604007822,14.24237814,147.29,147.25,14.24237814]
[1746604008017,139.7253,147.3,147.25,21.03316647]
[1746604008213,139.7253,147.3,147.25,6.79078833]
[1746604008416,139.7253,147.3,147.28,14.24237814]
[1746604008617,14.24237814,147.32,147.28,14.24237814]
[1746604009137,7.9986,147.34,147.29,14.24237814]
[1746604009312,22.24097814,147.34,147.29,14.24237814]
[1746604010125,7.9986,147.34,147.29,14.24237814]
[1746604010315,14.24237814,147.33,147.29,14.24237814]
[1746604010517,7.9986,147.34,147.29,14.24237814]
[1746604010816,22.24097814,147.34,147.29,14.24237814]
[1746604011138,22.24097814,147.34,147.3,14.24237814]
[1746604011526,29.02821216,147.34,147.3,14.24237814]
[1746604011735,14.78583402,147.34,147.29,14.24237814]
[1746604012039,21.03140219,147.3,147.28,15.86]
[1746604012225,14.24237814,147.29,147.28,15.86]
[1746604012420,14.24237814,147.29,147.23,14.24237814]
[1746604012631,14.24237814,147.27,147.24,15.86]
[1746604012837,14.24237814,147.26,147.24,15.86]
[1746604017449,6.79044353,147.27,147.24,15.86]
[1746604017620,14.24237814,147.27,147.24,15.86]
[1746604019336,14.24237814,147.26,147.24,15.86]
[1746604019534,14.24237814,147.27,147.24,15.86]
[1746604020347,14.24237814,147.26,147.24,15.86]
[1746604020948,14.24237814,147.27,147.24,15.86]
[1746604021145,14.24237814,147.27,147.23,21.03444863]
[1746604028963,14.92028788,147.28,147.23,21.03444863]
[1746604029145,14.24237814,147.27,147.23,21.03444863]
[1746604031254,8.1303,147.28,147.24,14.24237814]
[1746604031452,14.24237814,147.27,147.24,14.24237814]
[1746604032655,14.24237814,147.27,147.23,14.24237814]
[1746604033757,14.24237814,147.27,147.23,21.03409787]
[1746604036161,8.1303,147.28,147.24,14.24237814]
[1746604036343,131.7,147.29,147.23,23.77195473]
[1746604036539,145.94237814,147.29,147.25,14.24237814]
[1746604036740,145.94237814,147.29,147.24,14.24237814]
[1746604038772,145.94237814,147.29,147.25,6.79117147]
[1746604039159,5.06832942,147.28,147.25,6.79117147]
[1746604039360,19.31070756,147.28,147.25,6.79117147]
[1746604040189,5.06832942,147.27,147.25,6.79117147]
[1746604040477,5.06832942,147.27,147.26,14.24237814]
[1746604040853,5.06832942,147.27,147.26,21.03308844]
[1746604041243,5.06832942,147.27,147.26,36.87308844]
[1746604041668,5.06832942,147.27,147.26,62.87308844]
[1746604042378,131.7,147.33,147.26,79.84986421]
[1746604042546,131.7,147.33,147.3,14.24237814]
[1746604043179,145.94237814,147.33,147.29,14.24237814]
[1746604044384,145.94237814,147.33,147.3,6.78886625]
[1746604049786,145.94237814,147.33,147.3,21.03124439]
[1746604050381,131.7,147.33,147.3,21.03124439]
[1746604050758,131.7,147.33,147.31,14.24237814]
[1746604052981,131.7,147.33,147.32,6.78794461]
[1746604053990,14.24237814,147.35,147.32,6.78794461]
[1746604054678,131.7,147.37,147.33,14.24237814]
[1746604054870,145.94237814,147.37,147.33,14.24237814]
[1746604055073,145.94237814,147.37,147.34,6.78702321]
[1746604055758,131.7,147.37,147.34,21.02940135]
[1746604058060,14.24237814,147.35,147.33,6.78742875]
[1746604058261,14.24237814,147.35,147.32,6.78777893]
[1746604059694,14.24237814,147.35,147.31,36.87059586]
[1746604061300,138.48575452,147.37,147.31,36.87059586]
[1746604061687,14.24237814,147.35,147.31,36.87059586]
[1746604062197,138.48575452,147.37,147.31,36.87059586]
[1746604062364,14.24237814,147.35,147.31,36.87059586]
[1746604064196,14.24237814,147.34,147.31,15.84]
[1746604064376,14.24237814,147.33,147.3,47.03105489]
[1746604064582,14.24237814,147.32,147.29,30.02237814]
[1746604064999,14.24237814,147.32,147.29,22.56910782]
[1746604066506,14.24237814,147.32,147.29,36.81148596]
[1746604066806,14.24237814,147.33,147.29,36.81148596]
[1746604071802,14.24237814,147.33,147.29,22.56910782]
[1746604072105,14.24237814,147.3,147.26,6.7907103]
[1746604072305,14.24237814,147.29,147.26,6.7907103]
[1746604073083,138.3195,147.31,147.22,6.79255535]
[1746604073308,14.24237814,147.26,147.22,21.03493349]
[1746604075005,14.24237814,147.27,147.23,14.24237814]
[1746604075503,138.3195,147.31,147.25,14.24237814]
[1746604075691,14.24237814,147.29,147.26,14.24237814]
[1746604076907,14.24237814,147.29,147.26,21.0330066]
[1746604078517,14.24237814,147.29,147.25,14.24237814]
[1746604079787,14.24237814,147.29,147.26,6.7907103]
[1746604080825,14.24237814,147.28,147.25,6.79117147]
[1746604084309,14.24237814,147.29,147.25,21.03354961]
[1746604085008,138.3195,147.31,147.25,6.79117147]
[1746604085201,14.24237814,147.28,147.25,6.79117147]
[1746604085795,138.3195,147.31,147.25,6.79117147]
[1746604085994,14.24237814,147.28,147.25,6.79117147]
[1746604088920,14.24237814,147.27,147.25,6.79117147]
[1746604089116,14.24237814,147.26,147.24,6.79155167]
[1746604089621,14.24237814,147.25,147.24,6.79155167]
[1746604091327,6.78932717,147.29,147.22,21.03493349]
[1746604091629,14.24237814,147.26,147.22,21.03493349]
[1746604095927,14.24237814,147.26,147.22,38.01632188]
[1746604096523,14.24237814,147.26,147.23,14.24237814]
[1746604098228,14.24237814,147.27,147.24,23.77071447]
[1746604098724,14.24237814,147.27,147.24,38.01309261]
[1746604099731,14.24237814,147.27,147.24,23.77071447]
[1746604100132,131.7,147.3,147.24,23.77071447]
[1746604100325,14.24237814,147.27,147.24,23.77071447]
[1746604102030,14.24237814,147.27,147.24,38.01309261]
[1746604102430,14.24237814,147.28,147.24,38.01309261]
[1746604102630,131.7,147.3,147.25,14.24237814]
[1746604102953,14.24237814,147.29,147.25,14.24237814]
[1746604103949,14.24237814,147.28,147.25,14.24237814]
[1746604104117,14.24237814,147.29,147.25,14.24237814]
[1746604104540,14.24237814,147.28,147.26,6.7907103]
[1746604105643,131.7,147.3,147.21,43.4002]
[1746604105850,14.24237814,147.26,147.22,38.01632188]
[1746604106339,14.24237814,147.27,147.23,14.24237814]
[1746604106822,14.24237814,147.27,147.22,23.77394374]
[1746604107019,14.24237814,147.26,147.22,38.01632188]
[1746604107235,14.24237814,147.28,147.24,14.24237814]
[1746604108857,14.24237814,147.28,147.25,6.79117147]
[1746604109449,14.24237814,147.29,147.25,6.79117147]
[1746604111544,14.24237814,147.28,147.25,6.79117147]
[1746604113133,14.24237814,147.29,147.25,6.79117147]
[1746604114651,14.24237814,147.28,147.25,6.79117147]
[1746604115453,14.24237814,147.29,147.25,23.76910016]
[1746604115649,145.94237814,147.3,147.25,38.0114783]
[1746604115946,145.94237814,147.3,147.26,14.24237814]
[1746604117230,145.94237814,147.3,147.25,38.0114783]
[1746604118153,14.24237814,147.29,147.25,38.0114783]
[1746604119648,131.7,147.3,147.25,38.0114783]
[1746604119961,14.24237814,147.29,147.25,38.0114783]
[1746604120638,14.24237814,147.3,147.26,14.24237814]
[1746604121350,14.24237814,147.3,147.25,38.0114783]
[1746604121856,1.5146,147.32,147.25,38.0114783]
[1746604122033,14.24237814,147.3,147.26,14.24237814]
[1746604122440,14.24237814,147.3,147.25,38.0114783]
[1746604125261,1.5146,147.32,147.25,38.0114783]
[1746604125461,14.24237814,147.3,147.25,38.0114783]
[1746604129660,14.24237814,147.3,147.25,23.76910016]
[1746604129964,9.09749155,147.29,147.25,32.86659171]
[1746604130962,9.09749155,147.3,147.25,32.86659171]
[1746604131356,1.5146,147.32,147.25,32.86659171]
[1746604131554,9.09749155,147.3,147.25,32.86659171]
[1746604132250,9.09749155,147.29,147.25,32.86659171]
[1746604132761,9.09749155,147.28,147.25,23.76910016]
[1746604132968,1.5146,147.32,147.25,23.76910016]
[1746604133160,9.09749155,147.28,147.25,23.76910016]
[1746604140665,9.09749155,147.27,147.25,6.79117147]
[1746604142965,9.09749155,147.28,147.25,6.79117147]
[1746604143270,9.09749155,147.27,147.25,6.79117147]
[1746604143456,9.09749155,147.26,147.25,6.79117147]
[1746604145050,6.4133,147.3,147.25,6.79117147]
[1746604145379,14.18574051,147.29,147.25,6.79117147]
[1746604145669,14.18574051,147.29,147.25,32.86659171]
[1746604146746,5.08824896,147.28,147.25,32.86659171]
[1746604147375,5.08824896,147.28,147.25,23.76910016]
[1746604147555,5.08824896,147.28,147.26,9.09749155]
[1746604147751,5.08824896,147.27,147.26,9.09749155]
[1746604148249,5.08824896,147.27,147.25,32.86659171]
[1746604148879,5.08824896,147.26,147.25,32.86659171]
[1746604151273,5.08824896,147.26,147.25,6.79117147]
[1746604151453,14.18574051,147.26,147.25,6.79117147]
[1746604153776,19.30899327,147.26,147.25,6.79117147]
[1746604154469,19.30899327,147.26,147.24,22.57149646]
[1746604154671,14.22074431,147.25,147.24,22.57149646]
[1746604155776,19.30899327,147.25,147.24,22.57149646]
[1746604155981,5.08824896,147.25,147.24,22.57149646]
[1746604164058,19.30899327,147.25,147.24,22.57149646]
[1746604166883,19.30899327,147.25,147.23,6.79199055]
[1746604167076,14.22074431,147.24,147.23,6.79199055]
[1746604167786,14.22074431,147.24,147.21,6.79301677]
[1746604167986,14.22074431,147.22,147.19,6.7939398]
[1746604168281,14.22074431,147.21,147.19,6.7939398]
[1746604168484,14.22074431,147.2,147.18,22.55430956]
[1746604168684,14.22074431,147.19,147.18,22.55430956]
[1746604169388,19.30899327,147.19,147.18,22.55430956]
[1746604169565,5.08824896,147.19,147.18,22.55430956]
[1746604169765,19.30899327,147.19,147.18,22.55430956]
[1746604170869,5.08824896,147.19,147.18,6.79430956]
[1746604171169,19.30899327,147.19,147.18,6.79430956]
[1746604172085,14.22074431,147.19,147.18,6.79430956]
[1746604172277,14.22074431,147.19,147.16,23.78276751]
[1746604172483,14.22074431,147.18,147.16,23.78276751]
[1746604175275,14.22074431,147.17,147.16,23.78276751]
[1746604176166,19.29238868,147.17,147.16,23.78276751]
[1746604177094,14.22074431,147.17,147.16,6.79532481]
[1746604178968,19.28691618,147.17,147.16,6.79532481]
[1746604179297,19.28691618,147.17,147.13,23.78740061]
[1746604179497,14.22074431,147.16,147.13,23.78740061]
[1746604181128,6.495,147.19,147.13,23.78740061]
[1746604181288,14.22074431,147.16,147.13,23.78740061]
[1746604183880,14.22074431,147.17,147.13,38.00814492]
[1746604184087,131.7,147.2,147.15,14.22074431]
[1746604184305,14.22074431,147.19,147.15,14.22074431]
[1746604187092,131.7,147.23,147.16,71.98100524]
[1746604187301,145.92074431,147.23,147.19,14.22074431]
[1746604187794,14.22074431,147.21,147.16,73.56026093]
[1746604187998,14.22074431,147.21,147.17,14.22074431]
[1746604188690,14.22074431,147.2,147.16,39.58363685]
[1746604188896,14.22074431,147.19,147.16,39.58363685]
[1746604189990,7.8186,147.22,147.16,39.58363685]
[1746604189991,14.22074431,147.2,147.16,53.80438116]
[1746604190189,14.22074431,147.22,147.18,14.22074431]
[1746604190386,145.92074431,147.23,147.18,14.22074431]
[1746604191599,14.22074431,147.22,147.19,6.7939398]
[1746604191783,145.92074431,147.23,147.19,37.99953362]
[1746604192277,131.7,147.23,147.2,14.22074431]
[1746604192603,14.22074431,147.24,147.2,14.22074431]
[1746604193506,14.22074431,147.24,147.21,6.79301677]
[1746604193903,26.0,147.27,147.21,6.79301677]
[1746604194083,14.22074431,147.25,147.21,21.01376108]
[1746604194802,5.06312991,147.24,147.21,21.01376108]
[1746604195509,19.28387422,147.24,147.2,14.22074431]
[1746604195901,14.22074431,147.24,147.2,14.22074431]
[1746604196913,14.22074431,147.24,147.21,6.79301677]
[1746604197208,5.06623699,147.23,147.21,6.79301677]
[1746604197714,14.22074431,147.24,147.21,6.79301677]
[1746604198813,131.7,147.27,147.21,6.79301677]
[1746604199015,5.06791938,147.26,147.21,6.79301677]
[1746604199201,14.22074431,147.24,147.21,6.79301677]
[1746604200416,14.22074431,147.23,147.21,6.79301677]
[1746604200617,14.22074431,147.22,147.19,6.7939398]
[1746604200808,14.22074431,147.2,147.19,6.7939398]
[1746604201817,14.22074431,147.2,147.17,6.79486308]
[1746604206138,14.22074431,147.21,147.17,21.01560739]
[1746604207021,14.22074431,147.21,147.17,38.00276509]
[1746604208124,14.22074431,147.21,147.17,23.78202078]
[1746604208310,14.22074431,147.2,147.17,23.78202078]
[1746604208511,14.22074431,147.21,147.17,23.78202078]
[1746604209702,5.07754249,147.2,147.17,23.78202078]
[1746604210000,19.2982868,147.2,147.17,23.78202078]
[1746604210825,14.22074431,147.2,147.17,23.78202078]
[1746604211828,14.22074431,147.19,147.17,23.78202078]
[1746604212125,19.30148269,147.19,147.17,23.78202078]
[1746604212630,14.22074431,147.18,147.17,6.79486308]
[1746604214223,19.30342702,147.18,147.17,6.79486308]
[1746604217612,19.30342702,147.18,147.15,6.79578661]
[1746604217811,14.22074431,147.17,147.15,6.79578661]
[1746604218112,14.22074431,147.17,147.14,23.78603771]
[1746604218536,21.01383317,147.21,147.14,6.79624847]
[1746604218537,14.22074431,147.16,147.14,6.79624847]
[1746604218721,14.22074431,147.15,147.14,6.79624847]
[1746604219531,14.22074431,147.15,147.12,23.78997917]
[1746604219714,14.22074431,147.14,147.12,23.78997917]
[1746604219910,14.22074431,147.14,147.12,6.79717237]
[1746604221340,14.22074431,147.15,147.12,6.79717237]
[1746604222827,5.07878844,147.14,147.12,6.79717237]
[1746604223932,14.22074431,147.14,147.12,6.79717237]
[1746604227421,5.07469765,147.14,147.12,38.01084762]
[1746604228311,14.22074431,147.16,147.12,38.01084762]
[1746604228837,14.22074431,147.15,147.12,38.01084762]
[1746604229534,14.22074431,147.15,147.12,23.79010331]
[1746604230513,14.22074431,147.14,147.12,23.79010331]
[1746604231023,14.22074431,147.15,147.12,23.79010331]
[1746604231941,131.7,147.18,147.12,23.79010331]
[1746604232133,14.22074431,147.15,147.12,23.79010331]
[1746604234338,14.22074431,147.14,147.12,23.79010331]
[1746604235010,14.22074431,147.13,147.12,23.79010331]
[1746604236737,14.22074431,147.13,147.12,16.99293094]
[1746604237446,14.22074431,147.13,147.11,6.79763442]
[1746604237645,14.22074431,147.12,147.11,6.79763442]
[1746604240220,14.22074431,147.13,147.11,6.79763442]
[1746604245050,138.4946055,147.18,147.11,6.79763442]
[1746604245235,14.22074431,147.13,147.11,6.79763442]
[1746604248345,14.22074431,147.12,147.11,6.79763442]
[1746604248531,14.22074431,147.12,147.1,22.61790584]
[1746604248728,14.22074431,147.11,147.1,22.61790584]
[1746604250826,19.29522805,147.11,147.1,22.61790584]
[1746604251350,5.07448374,147.11,147.1,22.61790584]
[1746604255351,19.29522805,147.11,147.1,6.79790584]
[1746604255557,19.29522805,147.11,147.07,21.02022754]
[1746604255756,5.07448374,147.11,147.08,14.22074431]
[1746604256055,5.07448374,147.11,147.09,14.22074431]
[1746604256653,14.22074431,147.12,147.09,14.22074431]
[1746604256958,14.22074431,147.12,147.08,14.22074431]
[1746604258451,1.5583,147.14,147.07,38.01893563]
[1746604258637,1.5583,147.14,147.09,14.22074431]
[1746604258839,14.22074431,147.13,147.09,14.22074431]
[1746604259040,14.22074431,147.12,147.08,14.22074431]
[1746604259756,9.11754931,147.12,147.09,23.79495546]
[1746604260161,9.11754931,147.14,147.09,32.91250477]
[1746604260462,131.7,147.15,147.11,9.11754931]
[1746604260640,9.11754931,147.16,147.12,9.11754931]
[1746604260840,1.556,147.18,147.12,9.11754931]
[1746604261039,9.11754931,147.16,147.12,9.11754931]
[1746604261242,1.556,147.18,147.13,9.11754931]
[1746604261449,9.11754931,147.17,147.13,9.11754931]
[1746604261961,9.11754931,147.17,147.14,6.79624847]
[1746604263150,1.556,147.18,147.14,6.79624847]